[Event "Titled Tuesday Blitz March 22 Early 2022"]
[White "Mena, Ailen Oriana"]
[Black "Silvestre, Christian"]
[WhiteFideId "3902773"]
[BlackFideId "30956269"]
[WhiteElo "1534"]
[BlackElo "2424"]
[Result "0-1"]
[Round "10"]
[TimeControl "180+1"]
[Date "2022.03.22"]
[WhiteClock "0:00:01"]
[BlackClock "0:00:07"]

1. e4 {[%clk 0:03:00]}  c6 {[%clk 0:02:58]} 2. d4 {[%clk 0:03:00]}  d5 {[%clk 0:02:58]} 3. e5 {[%clk 0:03:00]}  a6 {[%clk 0:02:32]} 4. h4 {[%clk 0:02:50]}  h6 {[%clk 0:02:28]} 5. c4 {[%clk 0:02:40]}  Bf5 {[%clk 0:02:17]} 6. g4 {[%clk 0:02:37]}  Bh7 {[%clk 0:02:14]} 7. e6 {[%clk 0:02:32]}  fxe6 {[%clk 0:02:15]} 8. Bd3 {[%clk 0:02:32]}  Nf6 {[%clk 0:02:10]} 9. Bxh7 {[%clk 0:02:30]}  Nxh7 {[%clk 0:02:03]} 10. Qd3 {[%clk 0:02:26]}  Nf6 {[%clk 0:01:57]} 11. Nf3 {[%clk 0:02:19]}  dxc4 {[%clk 0:01:54]} 12. Qg6+ {[%clk 0:02:17]}  Kd7 {[%clk 0:01:51]} 13. Ne5+ {[%clk 0:02:17]}  Kc8 {[%clk 0:01:50]} 14. Nf7 {[%clk 0:02:11]}  Qd5 {[%clk 0:01:47]} 15. Rg1 {[%clk 0:01:55]}  Rg8 {[%clk 0:01:45]} 16. Be3 {[%clk 0:01:42]}  Qe4 {[%clk 0:01:37]} 17. Qxe4 {[%clk 0:01:37]}  Nxe4 {[%clk 0:01:35]} 18. f3 {[%clk 0:01:34]}  Nd6 {[%clk 0:01:34]} 19. Ne5 {[%clk 0:01:34]}  Nd7 {[%clk 0:01:30]} 20. Ng6 {[%clk 0:01:32]}  Nf6 {[%clk 0:01:26]} 21. Nc3 {[%clk 0:01:27]}  Nd5 {[%clk 0:01:25]} 22. Kf2 {[%clk 0:01:17]}  b5 {[%clk 0:01:16]} 23. a3 {[%clk 0:00:56]}  a5 {[%clk 0:00:54]} 24. Rge1 {[%clk 0:00:45]}  Rb8 {[%clk 0:00:49]} 25. Bd2 {[%clk 0:00:39]}  Kd7 {[%clk 0:00:42]} 26. Nxd5 {[%clk 0:00:39]}  cxd5 {[%clk 0:00:38]} 27. Bxa5 {[%clk 0:00:39]}  Nf7 {[%clk 0:00:31]} 28. Nf4 {[%clk 0:00:20]}  Ra8 {[%clk 0:00:26]} 29. Bb4 {[%clk 0:00:20]}  Ra6 {[%clk 0:00:26]} 30. Ng6 {[%clk 0:00:17]}  Nh8 {[%clk 0:00:18]} 31. Ne5+ {[%clk 0:00:15]}  Ke8 {[%clk 0:00:18]} 32. h5 {[%clk 0:00:14]}  Nf7 {[%clk 0:00:18]} 33. Ng6 {[%clk 0:00:12]}  Nh8 {[%clk 0:00:18]} 34. f4 {[%clk 0:00:11]}  Nxg6 {[%clk 0:00:18]} 35. hxg6 {[%clk 0:00:12]}  e5 {[%clk 0:00:18]} 36. Rxe5 {[%clk 0:00:11]}  Rxg6 {[%clk 0:00:18]} 37. Rae1 {[%clk 0:00:10]}  Rxg4 {[%clk 0:00:18]} 38. Kf3 {[%clk 0:00:08]}  Rg6 {[%clk 0:00:18]} 39. Bxe7 {[%clk 0:00:09]}  Kf7 {[%clk 0:00:16]} 40. Rf5+ {[%clk 0:00:06]}  Rf6 {[%clk 0:00:11]} 41. Bxf6 {[%clk 0:00:06]}  gxf6 {[%clk 0:00:11]} 42. Rxd5 {[%clk 0:00:06]}  h5 {[%clk 0:00:10]} 43. Rxb5 {[%clk 0:00:07]}  h4 {[%clk 0:00:11]} 44. Rh5 {[%clk 0:00:07]}  Rg3+ {[%clk 0:00:11]} 45. Kf2 {[%clk 0:00:07]}  Rh3 {[%clk 0:00:11]} 46. Kg2 {[%clk 0:00:06]}  Rb3 {[%clk 0:00:11]} 47. Rxh4 {[%clk 0:00:05]}  Rxb2+ {[%clk 0:00:11]} 48. Kf1 {[%clk 0:00:05]}  Bg7 {[%clk 0:00:09]} 49. d5 {[%clk 0:00:05]}  f5 {[%clk 0:00:09]} 50. d6 {[%clk 0:00:04]}  Rd2 {[%clk 0:00:08]} 51. a4 {[%clk 0:00:03]}  c3 {[%clk 0:00:09]} 52. Re7+ {[%clk 0:00:01]}  Kf8 {[%clk 0:00:08]} 53. Ra7 {[%clk 0:00:01]}  Rxd6 {[%clk 0:00:07]} 54. a5 {[%clk 0:00:01]}  Rc6 {[%clk 0:00:07]} 55. Ke2 {[%clk 0:00:01]}  c2 {[%clk 0:00:07]} 0-1


[Site "https://www.chess.com"]

[Event "Titled Tuesday Blitz March 22 Early 2022"]
[White "Mirzanurov, Bulat"]
[Black "Shtyka, Sergey"]
[WhiteFideId "4184521"]
[BlackFideId "4138465"]
[WhiteElo "2116"]
[BlackElo "2014"]
[Result "1-0"]
[Round "10"]
[TimeControl "180+1"]
[Date "2022.03.22"]
[WhiteClock "0:00:21"]
[BlackClock "0:00:20"]

1. e4 {[%clk 0:03:00]}  c5 {[%clk 0:02:53]} 2. Nf3 {[%clk 0:03:00]}  d6 {[%clk 0:02:52]} 3. d4 {[%clk 0:03:00]}  cxd4 {[%clk 0:02:53]} 4. Nxd4 {[%clk 0:03:01]}  Nf6 {[%clk 0:02:53]} 5. Nc3 {[%clk 0:03:02]}  g6 {[%clk 0:02:53]} 6. f3 {[%clk 0:03:01]}  Bg7 {[%clk 0:02:53]} 7. Be3 {[%clk 0:03:01]}  O-O {[%clk 0:02:54]} 8. Qd2 {[%clk 0:03:02]}  Nc6 {[%clk 0:02:54]} 9. O-O-O {[%clk 0:03:02]}  d5 {[%clk 0:02:55]} 10. exd5 {[%clk 0:03:01]}  Nxd5 {[%clk 0:02:52]} 11. Nxc6 {[%clk 0:03:01]}  bxc6 {[%clk 0:02:53]} 12. Bd4 {[%clk 0:03:02]}  e5 {[%clk 0:02:52]} 13. Bc5 {[%clk 0:03:02]}  Be6 {[%clk 0:02:53]} 14. Ne4 {[%clk 0:03:01]}  Re8 {[%clk 0:02:52]} 15. Bc4 {[%clk 0:02:59]}  Qc7 {[%clk 0:02:51]} 16. h4 {[%clk 0:02:54]}  h6 {[%clk 0:02:51]} 17. h5 {[%clk 0:02:53]}  g5 {[%clk 0:02:51]} 18. g4 {[%clk 0:02:53]}  Rad8 {[%clk 0:02:50]} 19. Qf2 {[%clk 0:02:16]}  a5 {[%clk 0:02:45]} 20. a4 {[%clk 0:01:57]}  Kh8 {[%clk 0:02:02]} 21. Bb3 {[%clk 0:01:53]}  f5 {[%clk 0:01:59]} 22. gxf5 {[%clk 0:01:49]}  Bxf5 {[%clk 0:01:59]} 23. Kb1 {[%clk 0:01:36]}  Nf6 {[%clk 0:01:15]} 24. Nd6 {[%clk 0:01:20]}  Rxd6 {[%clk 0:00:53]} 25. Bxd6 {[%clk 0:01:19]}  Qb7 {[%clk 0:00:53]} 26. Ka2 {[%clk 0:01:15]}  e4 {[%clk 0:00:50]} 27. fxe4 {[%clk 0:01:03]}  Bxe4 {[%clk 0:00:50]} 28. Rhe1 {[%clk 0:00:59]}  Qc8 {[%clk 0:00:41]} 29. Qc5 {[%clk 0:00:55]}  Bd5 {[%clk 0:00:31]} 30. Be5 {[%clk 0:00:37]}  Rxe5 {[%clk 0:00:27]} 31. Rxe5 {[%clk 0:00:37]}  Nd7 {[%clk 0:00:27]} 32. Rexd5 {[%clk 0:00:33]}  Nxc5 {[%clk 0:00:25]} 33. Rd8+ {[%clk 0:00:31]}  Qxd8 {[%clk 0:00:25]} 34. Rxd8+ {[%clk 0:00:32]}  Kh7 {[%clk 0:00:25]} 35. Bg8+ {[%clk 0:00:32]}  Kh8 {[%clk 0:00:25]} 36. Bf7+ {[%clk 0:00:32]}  Bf8 {[%clk 0:00:26]} 37. Rxf8+ {[%clk 0:00:31]}  Kg7 {[%clk 0:00:26]} 38. Rc8 {[%clk 0:00:29]}  Kxf7 {[%clk 0:00:26]} 39. b3 {[%clk 0:00:27]}  g4 {[%clk 0:00:20]} 40. Rxc6 {[%clk 0:00:27]}  Ne6 {[%clk 0:00:21]} 41. Rc3 {[%clk 0:00:24]}  Kf8 {[%clk 0:00:20]} 42. Rg3 {[%clk 0:00:21]} 1-0


[Site "https://www.chess.com"]

[Event "Titled Tuesday Blitz March 22 Early 2022"]
[White "Mkrtchyan, Mariam"]
[Black "Artemenko, Oleg"]
[WhiteFideId "13310828"]
[BlackFideId "14201798"]
[WhiteElo "1984"]
[BlackElo "2287"]
[Result "0-1"]
[Round "10"]
[TimeControl "180+1"]
[Date "2022.03.22"]
[WhiteClock "0:00:02"]
[BlackClock "0:00:31"]

1. Nf3 {[%clk 0:03:00]}  Nf6 {[%clk 0:02:59]} 2. g3 {[%clk 0:03:00]}  d5 {[%clk 0:02:57]} 3. Bg2 {[%clk 0:03:01]}  c6 {[%clk 0:02:57]} 4. c4 {[%clk 0:03:01]}  Bg4 {[%clk 0:02:56]} 5. Ne5 {[%clk 0:03:00]}  Bc8 {[%clk 0:02:52]} 6. d4 {[%clk 0:02:54]}  Nbd7 {[%clk 0:02:51]} 7. Nc3 {[%clk 0:02:50]}  e6 {[%clk 0:02:42]} 8. Nxd7 {[%clk 0:02:49]}  Bxd7 {[%clk 0:02:43]} 9. O-O {[%clk 0:02:46]}  dxc4 {[%clk 0:02:42]} 10. a4 {[%clk 0:02:43]}  Bb4 {[%clk 0:02:39]} 11. e4 {[%clk 0:02:31]}  O-O {[%clk 0:02:37]} 12. Qe2 {[%clk 0:02:20]}  Bxc3 {[%clk 0:02:35]} 13. bxc3 {[%clk 0:02:20]}  b5 {[%clk 0:02:35]} 14. Bg5 {[%clk 0:02:13]}  h6 {[%clk 0:02:04]} 15. Bxf6 {[%clk 0:02:11]}  Qxf6 {[%clk 0:02:05]} 16. e5 {[%clk 0:01:56]}  Qd8 {[%clk 0:02:03]} 17. axb5 {[%clk 0:01:55]}  cxb5 {[%clk 0:02:04]} 18. Bxa8 {[%clk 0:01:51]}  Qxa8 {[%clk 0:02:05]} 19. Ra5 {[%clk 0:01:39]}  Qb7 {[%clk 0:02:03]} 20. Rb1 {[%clk 0:01:30]}  Rc8 {[%clk 0:02:00]} 21. f3 {[%clk 0:01:26]}  Bc6 {[%clk 0:01:58]} 22. Kf2 {[%clk 0:01:26]}  Qb6 {[%clk 0:01:56]} 23. Qa2 {[%clk 0:01:20]}  Ra8 {[%clk 0:01:49]} 24. Ra1 {[%clk 0:01:20]}  Rd8 {[%clk 0:01:38]} 25. Qa3 {[%clk 0:01:00]}  Rxd4 {[%clk 0:01:15]} 26. cxd4 {[%clk 0:00:56]}  Qxd4+ {[%clk 0:01:15]} 27. Qe3 {[%clk 0:00:55]}  Qb2+ {[%clk 0:01:16]} 28. Qe2 {[%clk 0:00:53]}  Qd4+ {[%clk 0:01:15]} 29. Kg2 {[%clk 0:00:53]}  b4 {[%clk 0:01:15]} 30. Rxa7 {[%clk 0:00:45]}  b3 {[%clk 0:01:09]} 31. R7a6 {[%clk 0:00:36]}  Bd5 {[%clk 0:01:04]} 32. Rd1 {[%clk 0:00:34]}  Qc3 {[%clk 0:01:00]} 33. Rb6 {[%clk 0:00:33]}  g6 {[%clk 0:00:52]} 34. Rb8+ {[%clk 0:00:24]}  Kg7 {[%clk 0:00:52]} 35. Rb6 {[%clk 0:00:25]}  g5 {[%clk 0:00:49]} 36. h4 {[%clk 0:00:25]}  g4 {[%clk 0:00:49]} 37. Kf2 {[%clk 0:00:23]}  Bxf3 {[%clk 0:00:45]} 38. Qe3 {[%clk 0:00:23]}  Qxe3+ {[%clk 0:00:43]} 39. Kxe3 {[%clk 0:00:23]}  Bxd1 {[%clk 0:00:44]} 40. Kd2 {[%clk 0:00:22]}  Bf3 {[%clk 0:00:44]} 41. Kc3 {[%clk 0:00:21]}  Bd5 {[%clk 0:00:44]} 42. Rb8 {[%clk 0:00:19]}  Kg6 {[%clk 0:00:44]} 43. Kd4 {[%clk 0:00:16]}  f6 {[%clk 0:00:42]} 44. exf6 {[%clk 0:00:15]}  Kxf6 {[%clk 0:00:42]} 45. Rh8 {[%clk 0:00:14]}  Kf5 {[%clk 0:00:39]} 46. Rf8+ {[%clk 0:00:12]}  Kg6 {[%clk 0:00:39]} 47. Rd8 {[%clk 0:00:11]}  e5+ {[%clk 0:00:35]} 48. Kxd5 {[%clk 0:00:10]}  b2 {[%clk 0:00:35]} 49. h5+ {[%clk 0:00:07]}  Kxh5 {[%clk 0:00:33]} 50. Rb8 {[%clk 0:00:06]}  c3 {[%clk 0:00:33]} 51. Kxe5 {[%clk 0:00:02]}  c2 {[%clk 0:00:32]} 52. Rxb2 {[%clk 0:00:01]}  c1=Q {[%clk 0:00:31]} 53. Rh2+ {[%clk 0:00:02]}  Kg5 {[%clk 0:00:31]} 54. Re2 {[%clk 0:00:02]}  Qc3+ {[%clk 0:00:30]} 55. Ke4 {[%clk 0:00:02]}  Qxg3 {[%clk 0:00:31]} 56. Re3 {[%clk 0:00:02]}  Qf4+ {[%clk 0:00:31]} 0-1


[Site "https://www.chess.com"]

[Event "Titled Tuesday Blitz March 22 Early 2022"]
[White "Namitbir Singh Walia"]
[Black "Santos Flores, Alberto"]
[WhiteFideId "35071068"]
[BlackFideId "3601234"]
[WhiteElo "1565"]
[BlackElo "2235"]
[Result "0-1"]
[Round "10"]
[TimeControl "180+1"]
[Date "2022.03.22"]
[WhiteClock "0:00:02"]
[BlackClock "0:00:21"]

1. e4 {[%clk 0:03:00]}  c5 {[%clk 0:02:50]} 2. Nf3 {[%clk 0:03:01]}  g6 {[%clk 0:02:48]} 3. d4 {[%clk 0:03:00]}  Bg7 {[%clk 0:02:48]} 4. c4 {[%clk 0:02:44]}  Qb6 {[%clk 0:02:47]} 5. dxc5 {[%clk 0:02:32]}  Qxc5 {[%clk 0:02:46]} 6. Qc2 {[%clk 0:02:25]}  d6 {[%clk 0:02:43]} 7. Nc3 {[%clk 0:02:22]}  Bg4 {[%clk 0:02:42]} 8. Be3 {[%clk 0:02:20]}  Qa5 {[%clk 0:02:39]} 9. Nd4 {[%clk 0:02:18]}  Nc6 {[%clk 0:02:35]} 10. Nb3 {[%clk 0:01:42]}  Bxc3+ {[%clk 0:02:31]} 11. bxc3 {[%clk 0:01:43]}  Qc7 {[%clk 0:02:31]} 12. f3 {[%clk 0:01:40]}  Bd7 {[%clk 0:02:27]} 13. Be2 {[%clk 0:01:35]}  Nf6 {[%clk 0:02:26]} 14. O-O {[%clk 0:01:35]}  O-O {[%clk 0:02:25]} 15. c5 {[%clk 0:01:27]}  dxc5 {[%clk 0:02:17]} 16. Nxc5 {[%clk 0:01:24]}  b6 {[%clk 0:02:14]} 17. Nxd7 {[%clk 0:01:23]}  Nxd7 {[%clk 0:02:15]} 18. Rfd1 {[%clk 0:01:22]}  Na5 {[%clk 0:02:14]} 19. Rac1 {[%clk 0:01:20]}  Rfd8 {[%clk 0:02:12]} 20. h4 {[%clk 0:00:58]}  Nc5 {[%clk 0:02:09]} 21. h5 {[%clk 0:00:58]}  Rxd1+ {[%clk 0:02:07]} 22. Rxd1 {[%clk 0:00:56]}  Rd8 {[%clk 0:02:06]} 23. h6 {[%clk 0:00:55]}  Rxd1+ {[%clk 0:02:02]} 24. Qxd1 {[%clk 0:00:56]}  Qd7 {[%clk 0:02:02]} 25. Qa1 {[%clk 0:00:45]}  f6 {[%clk 0:01:58]} 26. Qb1 {[%clk 0:00:40]}  Kf7 {[%clk 0:01:51]} 27. Qb4 {[%clk 0:00:32]}  Qd6 {[%clk 0:01:24]} 28. Qb5 {[%clk 0:00:25]}  Qc6 {[%clk 0:01:20]} 29. Qb4 {[%clk 0:00:17]}  Ncb7 {[%clk 0:01:10]} 30. Bb5 {[%clk 0:00:16]}  Qd6 {[%clk 0:01:09]} 31. Be2 {[%clk 0:00:14]}  Qxb4 {[%clk 0:01:05]} 32. cxb4 {[%clk 0:00:15]}  Nc6 {[%clk 0:01:05]} 33. Bc4+ {[%clk 0:00:15]}  e6 {[%clk 0:01:03]} 34. a3 {[%clk 0:00:15]}  Ne5 {[%clk 0:00:57]} 35. Be2 {[%clk 0:00:15]}  Ke7 {[%clk 0:00:56]} 36. f4 {[%clk 0:00:14]}  Nf7 {[%clk 0:00:56]} 37. Ba6 {[%clk 0:00:11]}  Nbd6 {[%clk 0:00:55]} 38. Bd3 {[%clk 0:00:10]}  Nxh6 {[%clk 0:00:54]} 39. e5 {[%clk 0:00:08]}  Ndf5 {[%clk 0:00:52]} 40. exf6+ {[%clk 0:00:08]}  Kxf6 {[%clk 0:00:53]} 41. Bd2 {[%clk 0:00:09]}  Ng4 {[%clk 0:00:51]} 42. Bc3+ {[%clk 0:00:08]}  Ke7 {[%clk 0:00:50]} 43. a4 {[%clk 0:00:07]}  Nf6 {[%clk 0:00:49]} 44. a5 {[%clk 0:00:06]}  Nd5 {[%clk 0:00:48]} 45. Bd2 {[%clk 0:00:06]}  Kd6 {[%clk 0:00:45]} 46. Kf2 {[%clk 0:00:06]}  Nfe7 {[%clk 0:00:41]} 47. g4 {[%clk 0:00:05]}  Nc6 {[%clk 0:00:41]} 48. axb6 {[%clk 0:00:04]}  axb6 {[%clk 0:00:42]} 49. b5 {[%clk 0:00:04]}  Na7 {[%clk 0:00:41]} 50. Kf3 {[%clk 0:00:02]}  Nc7 {[%clk 0:00:40]} 51. Bb4+ {[%clk 0:00:02]}  Kd7 {[%clk 0:00:39]} 52. f5 {[%clk 0:00:03]}  gxf5 {[%clk 0:00:34]} 53. gxf5 {[%clk 0:00:04]}  Naxb5 {[%clk 0:00:32]} 54. fxe6+ {[%clk 0:00:04]}  Kxe6 {[%clk 0:00:33]} 55. Bxh7 {[%clk 0:00:04]}  Kd5 {[%clk 0:00:33]} 56. Be4+ {[%clk 0:00:04]}  Kc4 {[%clk 0:00:33]} 57. Be1 {[%clk 0:00:04]}  Nd4+ {[%clk 0:00:32]} 58. Kg4 {[%clk 0:00:03]}  b5 {[%clk 0:00:32]} 59. Bf2 {[%clk 0:00:03]}  b4 {[%clk 0:00:31]} 60. Bxd4 {[%clk 0:00:03]}  Kxd4 {[%clk 0:00:31]} 61. Bg6 {[%clk 0:00:03]}  Nd5 {[%clk 0:00:29]} 62. Kf3 {[%clk 0:00:03]}  Kc3 {[%clk 0:00:28]} 63. Bh7 {[%clk 0:00:02]}  b3 {[%clk 0:00:28]} 64. Ke2 {[%clk 0:00:03]}  Nb4 {[%clk 0:00:22]} 65. Kd1 {[%clk 0:00:03]}  b2 {[%clk 0:00:22]} 66. Bg6 {[%clk 0:00:02]}  Nd3 {[%clk 0:00:21]} 0-1


[Site "https://www.chess.com"]

[Event "Titled Tuesday Blitz March 22 Early 2022"]
[White "Olsen, Filip Boe"]
[Black "Gubanov, Oleg"]
[WhiteFideId "1440640"]
[BlackFideId "14115115"]
[WhiteElo "2188"]
[BlackElo "2080"]
[Result "1-0"]
[Round "10"]
[TimeControl "180+1"]
[Date "2022.03.22"]
[WhiteClock "0:00:48"]
[BlackClock "0:00:08"]

1. d4 {[%clk 0:03:00]}  b5 {[%clk 0:02:59]} 2. Nf3 {[%clk 0:02:57]}  Bb7 {[%clk 0:02:59]} 3. c3 {[%clk 0:02:54]}  e6 {[%clk 0:02:58]} 4. a4 {[%clk 0:02:54]}  b4 {[%clk 0:02:57]} 5. Bg5 {[%clk 0:02:50]}  Nf6 {[%clk 0:02:55]} 6. e3 {[%clk 0:02:49]}  h6 {[%clk 0:02:54]} 7. Bh4 {[%clk 0:02:49]}  a5 {[%clk 0:02:51]} 8. Be2 {[%clk 0:02:43]}  Be7 {[%clk 0:02:46]} 9. O-O {[%clk 0:02:43]}  O-O {[%clk 0:02:45]} 10. Nbd2 {[%clk 0:02:43]}  c5 {[%clk 0:02:40]} 11. Nc4 {[%clk 0:02:36]}  d5 {[%clk 0:02:24]} 12. Nce5 {[%clk 0:02:36]}  Ba6 {[%clk 0:02:24]} 13. cxb4 {[%clk 0:02:30]}  cxb4 {[%clk 0:02:12]} 14. Rc1 {[%clk 0:02:27]}  Ne4 {[%clk 0:01:41]} 15. Bxe7 {[%clk 0:02:12]}  Qxe7 {[%clk 0:01:42]} 16. Bxa6 {[%clk 0:02:09]}  Rxa6 {[%clk 0:01:40]} 17. Qd3 {[%clk 0:02:04]}  Qb7 {[%clk 0:01:22]} 18. h3 {[%clk 0:02:01]}  f6 {[%clk 0:01:17]} 19. Ng6 {[%clk 0:01:56]}  Rd8 {[%clk 0:01:08]} 20. Rc2 {[%clk 0:01:53]}  Kf7 {[%clk 0:01:07]} 21. Nf4 {[%clk 0:01:50]}  Rc8 {[%clk 0:01:03]} 22. Rfc1 {[%clk 0:01:41]}  Rac6 {[%clk 0:01:03]} 23. Ne2 {[%clk 0:01:22]}  Rxc2 {[%clk 0:00:54]} 24. Rxc2 {[%clk 0:01:23]}  Rxc2 {[%clk 0:00:54]} 25. Qxc2 {[%clk 0:01:24]}  b3 {[%clk 0:00:44]} 26. Qd1 {[%clk 0:01:19]}  Nc6 {[%clk 0:00:35]} 27. Nc1 {[%clk 0:01:18]}  Qb4 {[%clk 0:00:28]} 28. Qxb3 {[%clk 0:01:17]}  Nd2 {[%clk 0:00:13]} 29. Qxb4 {[%clk 0:01:04]}  Nxf3+ {[%clk 0:00:13]} 30. gxf3 {[%clk 0:01:05]}  axb4 {[%clk 0:00:12]} 31. Nb3 {[%clk 0:01:01]}  Ke7 {[%clk 0:00:13]} 32. f4 {[%clk 0:00:59]}  Kd6 {[%clk 0:00:13]} 33. Kg2 {[%clk 0:00:59]}  g6 {[%clk 0:00:13]} 34. Kf3 {[%clk 0:00:59]}  g5 {[%clk 0:00:13]} 35. Kg4 {[%clk 0:00:57]}  Ne7 {[%clk 0:00:10]} 36. a5 {[%clk 0:00:50]}  e5 {[%clk 0:00:07]} 37. dxe5+ {[%clk 0:00:46]}  fxe5 {[%clk 0:00:07]} 38. fxg5 {[%clk 0:00:47]}  hxg5 {[%clk 0:00:08]} 39. Kxg5 {[%clk 0:00:48]} 1-0


[Site "https://www.chess.com"]

[Event "Titled Tuesday Blitz March 22 Early 2022"]
[White "Perera Alfonso, Rene Humberto"]
[Black "Gaehwiler, Gabriel"]
[WhiteFideId "3514722"]
[BlackFideId "1314530"]
[WhiteElo "2313"]
[BlackElo "2383"]
[Result "1-0"]
[Round "10"]
[TimeControl "180+1"]
[Date "2022.03.22"]
[WhiteClock "0:00:59"]
[BlackClock "0:00:08"]

1. e4 {[%clk 0:03:00]}  e5 {[%clk 0:02:58]} 2. Nf3 {[%clk 0:02:59]}  Nf6 {[%clk 0:02:58]} 3. Nxe5 {[%clk 0:02:58]}  d6 {[%clk 0:02:59]} 4. Nf3 {[%clk 0:02:58]}  Nxe4 {[%clk 0:02:59]} 5. d4 {[%clk 0:02:59]}  d5 {[%clk 0:02:57]} 6. Bd3 {[%clk 0:02:59]}  Nc6 {[%clk 0:02:56]} 7. O-O {[%clk 0:02:59]}  Be7 {[%clk 0:02:56]} 8. Nc3 {[%clk 0:03:00]}  Nf6 {[%clk 0:02:53]} 9. h3 {[%clk 0:02:57]}  O-O {[%clk 0:02:52]} 10. Re1 {[%clk 0:02:56]}  Nb8 {[%clk 0:02:37]} 11. Bf4 {[%clk 0:02:56]}  c6 {[%clk 0:02:37]} 12. Qd2 {[%clk 0:02:56]}  Bd7 {[%clk 0:02:34]} 13. Ne2 {[%clk 0:02:53]}  Na6 {[%clk 0:02:30]} 14. c3 {[%clk 0:02:51]}  Nc7 {[%clk 0:02:30]} 15. Ng3 {[%clk 0:02:51]}  Re8 {[%clk 0:02:28]} 16. Re2 {[%clk 0:02:50]}  Bf8 {[%clk 0:02:18]} 17. Rae1 {[%clk 0:02:49]}  Rxe2 {[%clk 0:02:18]} 18. Rxe2 {[%clk 0:02:49]}  Ne6 {[%clk 0:02:16]} 19. Be5 {[%clk 0:02:49]}  a5 {[%clk 0:02:00]} 20. Nf5 {[%clk 0:02:48]}  c5 {[%clk 0:01:49]} 21. dxc5 {[%clk 0:02:20]}  Nxc5 {[%clk 0:01:47]} 22. N3d4 {[%clk 0:02:13]}  Nfe4 {[%clk 0:01:37]} 23. Bxe4 {[%clk 0:02:07]}  Nxe4 {[%clk 0:01:02]} 24. Qf4 {[%clk 0:02:05]}  g5 {[%clk 0:00:19]} 25. Qf3 {[%clk 0:01:56]}  f6 {[%clk 0:00:16]} 26. Bg3 {[%clk 0:01:50]}  Qe8 {[%clk 0:00:14]} 27. Bd6 {[%clk 0:01:38]}  Bxd6 {[%clk 0:00:04]} 28. Nxd6 {[%clk 0:01:38]}  Qe5 {[%clk 0:00:04]} 29. Nxe4 {[%clk 0:01:37]}  dxe4 {[%clk 0:00:05]} 30. Rxe4 {[%clk 0:01:37]}  Qd6 {[%clk 0:00:05]} 31. Re3 {[%clk 0:01:29]}  Re8 {[%clk 0:00:04]} 32. Rxe8+ {[%clk 0:01:28]}  Bxe8 {[%clk 0:00:05]} 33. Qxb7 {[%clk 0:01:29]}  Bd7 {[%clk 0:00:05]} 34. Qe4 {[%clk 0:01:25]}  Kf7 {[%clk 0:00:05]} 35. Qxh7+ {[%clk 0:01:25]}  Ke8 {[%clk 0:00:06]} 36. Qg8+ {[%clk 0:01:24]}  Ke7 {[%clk 0:00:06]} 37. Qg7+ {[%clk 0:01:24]}  Kd8 {[%clk 0:00:05]} 38. h4 {[%clk 0:01:24]}  Qf4 {[%clk 0:00:04]} 39. Qf8+ {[%clk 0:01:21]}  Kc7 {[%clk 0:00:04]} 40. Qc5+ {[%clk 0:01:20]}  Kd8 {[%clk 0:00:04]} 41. Qxa5+ {[%clk 0:01:19]}  Ke7 {[%clk 0:00:04]} 42. Qc5+ {[%clk 0:01:18]}  Kd8 {[%clk 0:00:04]} 43. Qb6+ {[%clk 0:01:13]}  Ke8 {[%clk 0:00:04]} 44. Nf3 {[%clk 0:01:08]}  Qc1+ {[%clk 0:00:02]} 45. Kh2 {[%clk 0:01:07]}  Qf4+ {[%clk 0:00:02]} 46. Kh1 {[%clk 0:01:05]}  Qc1+ {[%clk 0:00:02]} 47. Ng1 {[%clk 0:01:06]}  gxh4 {[%clk 0:00:03]} 48. Qe3+ {[%clk 0:01:06]}  Qxe3 {[%clk 0:00:02]} 49. fxe3 {[%clk 0:01:04]}  Be6 {[%clk 0:00:02]} 50. b3 {[%clk 0:01:04]}  Kd7 {[%clk 0:00:02]} 51. Kh2 {[%clk 0:01:04]}  Kc6 {[%clk 0:00:03]} 52. Nf3 {[%clk 0:01:04]}  Kc5 {[%clk 0:00:04]} 53. Nxh4 {[%clk 0:01:04]}  Kd5 {[%clk 0:00:05]} 54. Kg3 {[%clk 0:01:03]}  Ke4 {[%clk 0:00:06]} 55. Kf2 {[%clk 0:01:01]}  Kd3 {[%clk 0:00:05]} 56. c4 {[%clk 0:01:00]}  Kc3 {[%clk 0:00:06]} 57. c5 {[%clk 0:00:59]}  Kb2 {[%clk 0:00:07]} 58. b4 {[%clk 0:00:58]}  Kxa2 {[%clk 0:00:07]} 59. b5 {[%clk 0:00:59]}  Kb3 {[%clk 0:00:07]} 60. c6 {[%clk 0:00:59]}  Kc4 {[%clk 0:00:08]} 61. b6 {[%clk 0:00:59]}  Kc5 {[%clk 0:00:08]} 62. b7 {[%clk 0:00:59]} 1-0


[Site "https://www.chess.com"]

[Event "Titled Tuesday Blitz March 22 Early 2022"]
[White "Pesotskiy, Mikhail"]
[Black "Zemerov, Vladimir"]
[WhiteFideId "34164453"]
[BlackFideId "4111583"]
[WhiteElo "2010"]
[BlackElo "2277"]
[Result "0-1"]
[Round "10"]
[TimeControl "180+1"]
[Date "2022.03.22"]
[WhiteClock "0:01:05"]
[BlackClock "0:01:21"]

1. d4 {[%clk 0:03:00]}  d6 {[%clk 0:02:56]} 2. c4 {[%clk 0:02:55]}  g6 {[%clk 0:02:56]} 3. e4 {[%clk 0:02:55]}  Bg7 {[%clk 0:02:56]} 4. Nc3 {[%clk 0:02:56]}  Nc6 {[%clk 0:02:55]} 5. Be3 {[%clk 0:02:55]}  e5 {[%clk 0:02:55]} 6. d5 {[%clk 0:02:55]}  Nd4 {[%clk 0:02:55]} 7. Nge2 {[%clk 0:02:55]}  Bg4 {[%clk 0:02:54]} 8. Qd2 {[%clk 0:02:53]}  Bxe2 {[%clk 0:02:45]} 9. Bxe2 {[%clk 0:02:54]}  c5 {[%clk 0:02:44]} 10. dxc6 {[%clk 0:02:53]}  bxc6 {[%clk 0:02:44]} 11. O-O {[%clk 0:02:47]}  Ne7 {[%clk 0:02:43]} 12. b4 {[%clk 0:02:36]}  O-O {[%clk 0:02:38]} 13. b5 {[%clk 0:02:35]}  c5 {[%clk 0:02:33]} 14. f3 {[%clk 0:02:34]}  f5 {[%clk 0:02:33]} 15. Bg5 {[%clk 0:02:33]}  Bf6 {[%clk 0:02:25]} 16. Bd3 {[%clk 0:02:29]}  f4 {[%clk 0:02:23]} 17. Bxf6 {[%clk 0:02:26]}  Rxf6 {[%clk 0:02:23]} 18. Ne2 {[%clk 0:02:26]}  g5 {[%clk 0:02:19]} 19. Nxd4 {[%clk 0:02:20]}  cxd4 {[%clk 0:02:18]} 20. h3 {[%clk 0:02:18]}  h5 {[%clk 0:02:17]} 21. Kf2 {[%clk 0:02:18]}  Ng6 {[%clk 0:02:17]} 22. Rac1 {[%clk 0:02:11]}  Rc8 {[%clk 0:02:16]} 23. Qb4 {[%clk 0:02:08]}  Qb6 {[%clk 0:02:15]} 24. a4 {[%clk 0:02:05]}  a5 {[%clk 0:02:09]} 25. Qb3 {[%clk 0:02:00]}  Rc5 {[%clk 0:02:09]} 26. Ke2 {[%clk 0:02:00]}  Nh4 {[%clk 0:02:07]} 27. Rg1 {[%clk 0:02:00]}  Rg6 {[%clk 0:02:03]} 28. Kd2 {[%clk 0:01:58]}  Kg7 {[%clk 0:01:58]} 29. Be2 {[%clk 0:01:55]}  Rc7 {[%clk 0:01:47]} 30. Kd3 {[%clk 0:01:51]}  Kh6 {[%clk 0:01:36]} 31. Rce1 {[%clk 0:01:44]}  Rg8 {[%clk 0:01:35]} 32. Ref1 {[%clk 0:01:43]}  Rgc8 {[%clk 0:01:35]} 33. Rc1 {[%clk 0:01:44]}  Rc5 {[%clk 0:01:34]} 34. Bd1 {[%clk 0:01:39]}  d5 {[%clk 0:01:31]} 35. exd5 {[%clk 0:01:37]}  Nf5 {[%clk 0:01:31]} 36. Be2 {[%clk 0:01:27]}  Nd6 {[%clk 0:01:27]} 37. Kd2 {[%clk 0:01:26]}  e4 {[%clk 0:01:25]} 38. Rgd1 {[%clk 0:01:12]}  d3 {[%clk 0:01:24]} 39. Bf1 {[%clk 0:01:08]}  Nxc4+ {[%clk 0:01:21]} 40. Rxc4 {[%clk 0:01:08]}  Rxc4 {[%clk 0:01:21]} 41. Re1 {[%clk 0:01:05]} 0-1


[Site "https://www.chess.com"]